fUST/lending_fUST_20260612
["ID","MTS","AMOUNT","RATE_DAILY","PERIOD"]
[424859031,1781209844000,-500.0,0.0003589,18]
[424859033,1781209844000,-500.0,0.0003589,2]
[424859034,1781209844000,-500.0,0.0003589,18]
[424859027,1781209844000,-500.0,0.0003589,18]
[424859036,1781209844000,-736.69,0.0003589,18]
[424859030,1781209844000,-1200.0,0.0003589,10]
[424859032,1781209844000,-634.46,0.0003589,18]
[424859037,1781209844000,-500.0,0.0003589,18]
[424859029,1781209844000,-500.0,0.0003589,18]
[424859050,1781209844000,-500.0,0.0003589,18]
[424859051,1781209844000,-161.61410867,0.0003589,14]
[424859039,1781209844000,-1247.72,0.0003589,18]
[424859041,1781209844000,-586.72,0.0003589,18]
[424859046,1781209844000,-500.0,0.0003589,18]
[424859049,1781209844000,-500.0,0.0003589,18]
[424859047,1781209844000,-500.0,0.0003589,18]
[424859048,1781209844000,-500.0,0.0003589,18]
[424859045,1781209844000,-500.0,0.0003589,18]
[424859042,1781209844000,-500.0,0.0003589,18]
[424859043,1781209844000,-500.0,0.0003589,18]
[424859089,1781209844000,-1000.0,0.00036164,2]
[424859040,1781209844000,-500.0,0.0003589,18]
[424859085,1781209844000,-500.0,0.00036164,18]
[424859104,1781209844000,-500.0,0.00036164,18]
[424859112,1781209844000,-665.37,0.00036164,18]
[424859113,1781209844000,-500.0,0.00036164,18]
[424859117,1781209844000,-500.0,0.00036164,18]
[424859119,1781209844000,-500.0,0.00036164,18]
[424859118,1781209844000,-500.0,0.00036164,18]
[424859116,1781209844000,-500.0,0.00036164,18]
[424859137,1781209844000,-27.54413101,0.00036164,18]
[424859127,1781209844000,-500.0,0.00036164,18]
[424859120,1781209844000,-787.32,0.00036164,2]
[424859121,1781209844000,-324.20412064,0.00036164,18]
[424859126,1781209844000,-531.55044038,0.00036164,18]
[424859124,1781209844000,-500.0,0.00036164,18]
[424859125,1781209844000,-500.0,0.00036164,18]
[424859123,1781209844000,-600.44,0.00036164,18]
[424859122,1781209844000,-500.0,0.00036164,18]
[424859129,1781209844000,-500.0,0.00036164,6]
[424859133,1781209844000,-500.0,0.00036164,18]
[424859130,1781209844000,-500.0,0.00036164,18]
[424859131,1781209844000,-500.0,0.00036164,18]
[424859136,1781209844000,-500.0,0.00036164,18]
[424859128,1781209844000,-1013.3,0.00036164,18]
[424859134,1781209844000,-500.0,0.00036164,18]
[424859132,1781209844000,-500.0,0.00036164,18]
[424859087,1781209844000,-500.0,0.00036164,18]
[424859107,1781209844000,-500.0,0.00036164,18]
[424859110,1781209844000,-500.0,0.00036164,18]
[424859135,1781209844000,-500.0,0.00036164,18]
[424859111,1781209844000,-624.47,0.00036164,18]
[424859115,1781209844000,-500.0,0.00036164,18]
[424859081,1781209844000,-500.0,0.00036164,18]
[424859088,1781209844000,-500.0,0.00036164,18]
[424859079,1781209844000,-500.0,0.00036164,18]
[424859080,1781209844000,-500.0,0.00036164,18]
[424859084,1781209844000,-500.0,0.00036164,18]
[424859083,1781209844000,-500.0,0.00036164,18]
[424859091,1781209844000,-500.0,0.00036164,18]
[424859090,1781209844000,-500.0,0.00036164,18]
[424859101,1781209844000,-500.0,0.00036164,18]
[424859102,1781209844000,-513.27932579,0.00036164,18]
[424859098,1781209844000,-500.0,0.00036164,18]
[424859095,1781209844000,-500.0,0.00036164,18]
[424859086,1781209844000,-500.0,0.00036164,18]
[424859099,1781209844000,-500.0,0.00036164,18]
[424859096,1781209844000,-500.0,0.00036164,18]
[424859106,1781209844000,-500.0,0.00036164,18]
[424859108,1781209844000,-500.0,0.00036164,18]
[424859114,1781209844000,-500.0,0.00036164,18]
[424859103,1781209844000,-500.0,0.00036164,18]
[424859105,1781209844000,-500.0,0.00036164,18]
[424859109,1781209844000,-500.0,0.00036164,18]
[424859093,1781209844000,-500.0,0.00036164,18]
[424859094,1781209844000,-500.0,0.00036164,18]
[424859092,1781209844000,-486.18622551,0.00036164,18]
[424859100,1781209844000,-500.0,0.00036164,18]
[424859097,1781209844000,-500.0,0.00036164,18]
[424859146,1781209845000,-500.0,0.00036164,18]
[424859150,1781209845000,-500.0,0.00036164,18]
[424859148,1781209845000,-608.35,0.00036164,18]
[424859143,1781209845000,-576.24586899,0.00036164,18]
[424859144,1781209845000,-248.47471032,0.00036164,18]
[424859140,1781209845000,-500.0,0.00035616,18]
[424859147,1781209845000,-500.0,0.00036164,18]
[424859142,1781209845000,-500.0,0.0003589,18]
[424859141,1781209845000,-500.0,0.0003589,18]
[424859139,1781209845000,-500.0,0.00035616,18]
[424859138,1781209845000,-500.0,0.00032,15]
[424859152,1781209845000,-500.0,0.00036164,18]
[424859145,1781209845000,-500.0,0.00036164,18]
[424859149,1781209845000,-500.0,0.00036164,18]
[424859151,1781209845000,-648.69,0.00036164,18]
[424859161,1781209845000,-500.0,0.00036164,18]
[424859160,1781209845000,-500.0,0.00036164,18]
[424859166,1781209845000,-3782.03942069,0.00036164,18]
[424859165,1781209845000,-500.0,0.00036164,18]
[424859162,1781209845000,-500.0,0.00036164,18]
[424859164,1781209845000,-500.0,0.00036164,18]
[424859159,1781209845000,-500.0,0.00036164,18]
[424859163,1781209845000,-500.0,0.00036164,18]
[424859158,1781209845000,-500.0,0.00036164,18]
[424859155,1781209845000,-500.0,0.00036164,18]
[424859156,1781209845000,-500.0,0.00036164,18]
[424859153,1781209845000,-500.0,0.00036164,18]
[424859154,1781209845000,-500.0,0.00036164,18]
[424859157,1781209845000,-500.0,0.00036164,18]
[424859195,1781209846000,-500.0,0.00036164,18]
[424859196,1781209846000,-500.0,0.00036164,18]
[424859204,1781209846000,-500.0,0.00036164,11]
[424859200,1781209846000,-500.0,0.00036164,18]
[424859192,1781209846000,-500.0,0.00036164,18]
[424859194,1781209846000,-500.0,0.00036164,18]
[424859189,1781209846000,-1480.66,0.00036164,18]
[424859191,1781209846000,-500.0,0.00036164,18]
[424859193,1781209846000,-1135.47,0.00036164,18]
[424859190,1781209846000,-884.84,0.00036164,18]
[424859182,1781209846000,-3244.35449231,0.00036164,18]
[424859184,1781209846000,-500.0,0.00036164,18]
[424859185,1781209846000,-500.0,0.00036164,18]
[424859187,1781209846000,-552.95,0.00036164,18]
[424859186,1781209846000,-500.0,0.00036164,18]
[424859183,1781209846000,-3479.766087,0.00036164,18]
[424859181,1781209846000,-300.0,0.0003589,2]
[424859179,1781209846000,-13.64550719,0.00035616,18]
[424859180,1781209846000,-500.0,0.00035616,18]
[424859177,1781209846000,-208.39834663,0.00032193,14]
[424859178,1781209846000,-486.35449281,0.00035616,18]
[424859188,1781209846000,-500.0,0.00036164,18]
[424859202,1781209846000,-500.0,0.00036164,18]
[424859216,1781209846000,-500.0,0.00036164,18]
[424859198,1781209846000,-500.0,0.00036164,18]
[424859197,1781209846000,-500.0,0.00036164,18]
[424859222,1781209846000,-634.46,0.00036164,18]
[424859223,1781209846000,-736.69,0.00036164,18]
[424859224,1781209846000,-1247.72,0.00036164,18]
[424859221,1781209846000,-500.0,0.00036164,18]
[424859217,1781209846000,-500.0,0.00036164,18]
[424859219,1781209846000,-500.0,0.00036164,18]
[424859218,1781209846000,-500.0,0.00036164,18]
[424859213,1781209846000,-814.21,0.00036164,18]
[424859215,1781209846000,-821.4,0.00036164,18]
[424859208,1781209846000,-500.0,0.00036164,18]
[424859220,1781209846000,-1200.0,0.00036164,10]
[424859207,1781209846000,-568.01,0.00036164,18]
[424859209,1781209846000,-500.0,0.00036164,18]
[424859211,1781209846000,-500.0,0.00036164,18]
[424859206,1781209846000,-500.0,0.00036164,18]
[424859214,1781209846000,-687.02,0.00036164,18]
[424859210,1781209846000,-500.0,0.00036164,18]
[424859205,1781209846000,-500.0,0.00036164,18]
[424859203,1781209846000,-500.0,0.00036164,18]
[424859199,1781209846000,-166.39551311,0.00036164,18]
[424859212,1781209846000,-500.0,0.00036164,18]
[424859201,1781209846000,-500.0,0.00036164,18]
[424859267,1781209847000,-500.0,0.00036438,18]
[424859268,1781209847000,-500.0,0.00036438,18]
[424859264,1781209847000,-500.0,0.00036438,18]
[424859265,1781209847000,-608.35,0.00036438,18]
[424859266,1781209847000,-648.69,0.00036438,18]
[424859262,1781209847000,-500.0,0.00036438,18]
[424859261,1781209847000,-603.79,0.00036438,18]
[424859259,1781209847000,-500.0,0.00036438,18]
[424859263,1781209847000,-500.0,0.00036438,18]
[424859260,1781209847000,-500.0,0.00036438,18]
[424859279,1781209847000,-1135.47,0.00036438,18]
[424859285,1781209847000,-500.0,0.00036438,11]
[424859271,1781209847000,-500.0,0.00036438,18]
[424859286,1781209847000,-568.01,0.00036438,18]
[424859269,1781209847000,-500.0,0.00036438,18]
[424859270,1781209847000,-500.0,0.00036438,18]
[424859273,1781209847000,-500.0,0.00036438,18]
[424859274,1781209847000,-10506.16,0.00036438,18]
[424859272,1781209847000,-500.0,0.00036438,18]
[424859277,1781209847000,-1480.66,0.00036438,18]
[424859275,1781209847000,-500.0,0.00036438,18]
[424859276,1781209847000,-552.95,0.00036438,18]
[424859280,1781209847000,-500.0,0.00036438,18]
[424859282,1781209847000,-484.35007431,0.00036438,18]
[424859258,1781209847000,-1013.3,0.00036438,18]
[424859289,1781209847000,-814.21,0.00036438,18]
[424859287,1781209847000,-500.0,0.00036438,18]
[424859284,1781209847000,-500.0,0.00036438,18]
[424859278,1781209847000,-884.84,0.00036438,18]
[424859257,1781209847000,-500.0,0.00036438,6]
[424859255,1781209847000,-500.0,0.00036438,18]
[424859253,1781209847000,-500.0,0.00036438,18]
[424859228,1781209847000,-500.0,0.00036164,18]
[424859229,1781209847000,-500.0,0.00036164,18]
[424859230,1781209847000,-500.0,0.00036164,18]
[424859227,1781209847000,-586.72,0.00036164,18]
[424859226,1781209847000,-500.0,0.00036164,18]
[424859225,1781209847000,-500.0,0.00036164,18]
[424859231,1781209847000,-500.0,0.00036164,18]
[424859234,1781209847000,-571.84,0.00036164,18]
[424859237,1781209847000,-817.63,0.00036164,18]
[424859233,1781209847000,-500.0,0.00036164,18]
[424859235,1781209847000,-166.71591423,0.00036164,18]
[424859232,1781209847000,-500.0,0.00036164,18]
[424859238,1781209847000,-500.0,0.00036164,18]
[424859240,1781209847000,-500.0,0.00036164,18]
[424859242,1781209847000,-1570.0,0.00036164,30]
[424859236,1781209847000,-500.0,0.00036164,18]
[424859239,1781209847000,-500.0,0.00036164,18]
[424859241,1781209847000,-500.0,0.00036164,18]
[424859244,1781209847000,-500.0,0.00036438,18]
[424859245,1781209847000,-500.0,0.00036438,18]
[424859246,1781209847000,-500.0,0.00036438,18]
[424859248,1781209847000,-293.8425384,0.00036438,18]
[424859247,1781209847000,-500.0,0.00036438,18]
[424859254,1781209847000,-787.32,0.00036438,2]
[424859243,1781209847000,-160.0,0.00036164,30]
[424859249,1781209847000,-500.0,0.00036438,18]
[424859252,1781209847000,-500.0,0.00036438,18]
[424859250,1781209847000,-624.47,0.00036438,18]
[424859251,1781209847000,-665.37,0.00036438,18]
[424859256,1781209847000,-600.44,0.00036438,18]
[424859288,1781209847000,-500.0,0.00036438,18]
[424859307,1781209847000,-300.0,0.00036438,41]
[424859290,1781209847000,-687.02,0.00036438,18]
[424859322,1781209847000,-1013.3,0.00036712,18]
[424859323,1781209847000,-500.0,0.00036712,18]
[424859324,1781209847000,-500.0,0.00036712,18]
[424859325,1781209847000,-603.79,0.00036712,18]
[424859329,1781209847000,-608.35,0.00036712,18]
[424859328,1781209847000,-500.0,0.00036712,18]
[424859326,1781209847000,-500.0,0.00036712,18]
[424859327,1781209847000,-500.0,0.00036712,18]
[424859330,1781209847000,-648.69,0.00036712,18]
[424859333,1781209847000,-500.0,0.00036712,18]
[424859334,1781209847000,-350.53159132,0.00036712,18]
[424859336,1781209847000,-500.0,0.00036712,18]
[424859345,1781209847000,-500.0,0.00036712,18]
[424859320,1781209847000,-600.44,0.00036712,18]
[424859339,1781209847000,-500.0,0.00036712,18]
[424859344,1781209847000,-500.0,0.00036712,18]
[424859337,1781209847000,-380.86176791,0.00036712,18]
[424859340,1781209847000,-552.95,0.00036712,18]
[424859342,1781209847000,-884.84,0.00036712,18]
[424859343,1781209847000,-1135.47,0.00036712,18]
[424859341,1781209847000,-1480.66,0.00036712,18]
[424859347,1781209847000,-500.0,0.00036712,18]
[424859346,1781209847000,-500.0,0.00036712,18]
[424859348,1781209847000,-500.0,0.00036712,11]
[424859351,1781209847000,-500.0,0.00036712,18]
[424859350,1781209847000,-500.0,0.00036712,18]
[424859349,1781209847000,-568.01,0.00036712,18]
[424859283,1781209847000,-500.0,0.00036438,18]
[424859338,1781209847000,-10506.16,0.00036712,18]
[424859332,1781209847000,-500.0,0.00036712,18]
[424859335,1781209847000,-500.0,0.00036712,18]
[424859321,1781209847000,-500.0,0.00036712,6]
[424859281,1781209847000,-500.0,0.00036438,18]
[424859331,1781209847000,-500.0,0.00036712,18]
[424859291,1781209847000,-821.4,0.00036438,18]
[424859292,1781209847000,-500.0,0.00036438,18]
[424859294,1781209847000,-400.0,0.00036438,10]
[424859302,1781209847000,-500.0,0.00036438,18]
[424859303,1781209847000,-500.0,0.00036438,18]
[424859304,1781209847000,-817.63,0.00036438,18]
[424859293,1781209847000,-500.0,0.00036438,18]
[424859300,1781209847000,-500.0,0.00036438,18]
[424859299,1781209847000,-500.0,0.00036438,18]
[424859297,1781209847000,-1247.72,0.00036438,18]
[424859301,1781209847000,-500.0,0.00036438,18]
[424859295,1781209847000,-634.46,0.00036438,18]
[424859298,1781209847000,-586.72,0.00036438,18]
[424859305,1781209847000,-500.0,0.00036438,18]
[424859318,1781209847000,-787.32,0.00036712,2]
[424859317,1781209847000,-500.0,0.00036712,18]
[424859296,1781209847000,-736.69,0.00036438,18]
[424859319,1781209847000,-500.0,0.00036712,18]
[424859312,1781209847000,-413.45093107,0.00036712,18]
[424859316,1781209847000,-500.0,0.00036712,18]
[424859309,1781209847000,-500.0,0.00036712,18]
[424859315,1781209847000,-665.37,0.00036712,18]
[424859311,1781209847000,-500.0,0.00036712,18]
[424859308,1781209847000,-151.0,0.00036707,41]
[424859313,1781209847000,-500.0,0.00036712,18]
[424859310,1781209847000,-500.0,0.00036712,18]
[424859306,1781209847000,-500.0,0.00036438,18]
[424859314,1781209847000,-624.47,0.00036712,18]
[424859389,1781209848000,-500.0,0.00036986,18]
[424859394,1781209848000,-500.0,0.00036986,18]
[424859392,1781209848000,-648.69,0.00036986,18]
[424859391,1781209848000,-608.35,0.00036986,18]
[424859385,1781209848000,-500.0,0.00036986,18]
[424859396,1781209848000,-500.0,0.00036986,18]
[424859386,1781209848000,-500.0,0.00036986,18]
[424859390,1781209848000,-500.0,0.00036986,18]
[424859387,1781209848000,-603.79,0.00036986,18]
[424859398,1781209848000,-10506.16,0.00036986,18]
[424859388,1781209848000,-500.0,0.00036986,18]
[424859395,1781209848000,-500.0,0.00036986,18]
[424859393,1781209848000,-500.0,0.00036986,18]
[424859399,1781209848000,-500.0,0.00036986,18]
[424859422,1781209848000,-500.0,0.00036986,18]
[424859401,1781209848000,-1480.66,0.00036986,18]
[424859404,1781209848000,-500.0,0.00036986,18]
[424859403,1781209848000,-1135.47,0.00036986,18]
[424859405,1781209848000,-500.0,0.00036986,18]
[424859408,1781209848000,-500.0,0.00036986,11]
[424859406,1781209848000,-500.0,0.00036986,18]
[424859411,1781209848000,-500.0,0.00036986,18]
[424859402,1781209848000,-884.84,0.00036986,18]
[424859410,1781209848000,-500.0,0.00036986,18]
[424859407,1781209848000,-500.0,0.00036986,18]
[424859409,1781209848000,-568.01,0.00036986,18]
[424859413,1781209848000,-687.02,0.00036986,18]
[424859424,1781209848000,-500.0,0.00036986,18]
[424859397,1781209848000,-360.74099836,0.00036986,18]
[424859400,1781209848000,-552.95,0.00036986,18]
[424859381,1781209848000,-500.0,0.00036986,18]
[424859353,1781209848000,-687.02,0.00036712,18]
[424859383,1781209848000,-1013.3,0.00036986,18]
[424859354,1781209848000,-821.4,0.00036712,18]
[424859412,1781209848000,-814.21,0.00036986,18]
[424859355,1781209848000,-500.0,0.00036712,18]
[424859352,1781209848000,-814.21,0.00036712,18]
[424859357,1781209848000,-634.46,0.00036712,18]
[424859356,1781209848000,-500.0,0.00036712,18]
[424859358,1781209848000,-736.69,0.00036712,18]
[424859360,1781209848000,-586.72,0.00036712,18]
[424859366,1781209848000,-817.63,0.00036712,18]
[424859367,1781209848000,-500.0,0.00036712,18]
[424859362,1781209848000,-500.0,0.00036712,18]
[424859364,1781209848000,-500.0,0.00036712,18]
[424859368,1781209848000,-500.0,0.00036712,18]
[424859359,1781209848000,-1247.72,0.00036712,18]
[424859380,1781209848000,-787.32,0.00036986,2]
[424859361,1781209848000,-500.0,0.00036712,18]
[424859363,1781209848000,-240.2,0.00036712,18]
[424859371,1781209848000,-151.0,0.00036985,30]
[424859370,1781209848000,-151.0,0.00036965,42]
[424859365,1781209848000,-500.0,0.00036712,18]
[424859372,1781209848000,-500.0,0.00036986,18]
[424859373,1781209848000,-500.0,0.00036986,18]
[424859374,1781209848000,-500.0,0.00036986,18]
[424859375,1781209848000,-500.0,0.00036986,18]
[424859376,1781209848000,-624.47,0.00036986,18]
[424859379,1781209848000,-367.58490798,0.00036986,18]
[424859377,1781209848000,-665.37,0.00036986,18]
[424859384,1781209848000,-500.0,0.00036986,6]
[424859378,1781209848000,-500.0,0.00036986,18]
[424859382,1781209848000,-600.44,0.00036986,18]
[424859369,1781209848000,-1570.0,0.00036712,30]
[424859415,1781209848000,-500.0,0.00036986,18]
[424859423,1781209848000,-577.86,0.00036986,18]
[424859417,1781209848000,-634.46,0.00036986,18]
[424859462,1781209848000,-500.0,0.0003726,18]
[424859464,1781209848000,-500.0,0.0003726,18]
[424859455,1781209848000,-500.0,0.0003726,18]
[424859458,1781209848000,-552.95,0.0003726,18]
[424859454,1781209848000,-500.0,0.0003726,18]
[424859459,1781209848000,-1480.66,0.0003726,18]
[424859463,1781209848000,-500.0,0.0003726,18]
[424859456,1781209848000,-10506.16,0.0003726,18]
[424859460,1781209848000,-884.84,0.0003726,18]
[424859461,1781209848000,-1135.47,0.0003726,18]
[424859476,1781209848000,-736.69,0.0003726,18]
[424859466,1781209848000,-500.0,0.0003726,11]
[424859478,1781209848000,-586.72,0.0003726,18]
[424859471,1781209848000,-687.02,0.0003726,18]
[424859453,1781209848000,-500.0,0.0003726,18]
[424859465,1781209848000,-500.0,0.0003726,18]
[424859470,1781209848000,-814.21,0.0003726,18]
[424859469,1781209848000,-500.0,0.0003726,18]
[424859467,1781209848000,-568.01,0.0003726,18]
[424859468,1781209848000,-500.0,0.0003726,18]
[424859472,1781209848000,-821.4,0.0003726,18]
[424859473,1781209848000,-500.0,0.0003726,18]
[424859474,1781209848000,-500.0,0.0003726,18]
[424859475,1781209848000,-634.46,0.0003726,18]
[424859481,1781209848000,-500.0,0.0003726,18]
[424859480,1781209848000,-500.0,0.0003726,18]
[424859479,1781209848000,-500.0,0.0003726,18]
[424859482,1781209848000,-817.63,0.0003726,18]
[424859483,1781209848000,-435.67,0.0003726,30]
[424859416,1781209848000,-500.0,0.00036986,18]
[424859477,1781209848000,-1247.72,0.0003726,18]
[424859451,1781209848000,-648.69,0.0003726,18]
[424859457,1781209848000,-500.0,0.0003726,18]
[424859444,1781209848000,-500.0,0.0003726,18]
[424859421,1781209848000,-500.0,0.00036986,18]
[424859418,1781209848000,-736.69,0.00036986,18]
[424859420,1781209848000,-586.72,0.00036986,18]
[424859414,1781209848000,-821.4,0.00036986,18]
[424859419,1781209848000,-1247.72,0.00036986,18]
[424859425,1781209848000,-817.63,0.00036986,18]
[424859427,1781209848000,-604.35992615,0.00036986,18]
[424859428,1781209848000,-151.0,0.00036999,30]
[424859452,1781209848000,-500.0,0.0003726,18]
[424859430,1781209848000,-151.0,0.00037012,43]
[424859429,1781209848000,-280.96141236,0.00037,60]
[424859431,1781209848000,-151.0,0.00037013,43]
[424859435,1781209848000,-500.0,0.0003726,18]
[424859433,1781209848000,-500.0,0.0003726,18]
[424859434,1781209848000,-500.0,0.0003726,18]
[424859426,1781209848000,-291.96560229,0.00036986,18]
[424859436,1781209848000,-624.47,0.0003726,18]
[424859447,1781209848000,-500.0,0.0003726,18]
[424859432,1781209848000,-500.0,0.0003726,18]
[424859446,1781209848000,-603.79,0.0003726,18]
[424859445,1781209848000,-500.0,0.0003726,18]
[424859442,1781209848000,-1013.3,0.0003726,18]
[424859443,1781209848000,-500.0,0.0003726,6]
[424859441,1781209848000,-600.44,0.0003726,18]
[424859440,1781209848000,-500.0,0.0003726,18]
[424859437,1781209848000,-665.37,0.0003726,18]
[424859450,1781209848000,-608.35,0.0003726,18]
[424859449,1781209848000,-500.0,0.0003726,18]
[424859448,1781209848000,-500.0,0.0003726,18]
[424859438,1781209848000,-500.0,0.0003726,18]
[424859439,1781209848000,-787.32,0.0003726,2]
[424859498,1781209849000,-1013.3,0.00037534,18]
[424859493,1781209849000,-665.37,0.00037534,18]
[424859497,1781209849000,-600.44,0.00037534,18]
[424859496,1781209849000,-500.0,0.00037534,18]
[424859504,1781209849000,-500.0,0.00037534,18]
[424859503,1781209849000,-500.0,0.00037534,18]
[424859486,1781209849000,-150.675652,0.000375,11]
[424859490,1781209849000,-500.0,0.00037534,18]
[424859488,1781209849000,-500.0,0.00037534,18]
[424859487,1781209849000,-1000.0,0.000375,11]
[424859485,1781209849000,-1264.014528,0.0003748,11]
[424859484,1781209849000,-987.06456226,0.00037478,58]
[424859491,1781209849000,-500.0,0.00037534,18]
[424859502,1781209849000,-603.79,0.00037534,18]
[424859489,1781209849000,-500.0,0.00037534,18]
[424859501,1781209849000,-500.0,0.00037534,18]
[424859509,1781209849000,-500.0,0.00037534,18]
[424859495,1781209849000,-787.32,0.00037534,2]
[424859514,1781209849000,-552.95,0.00037534,18]
[424859510,1781209849000,-500.0,0.00037534,18]
[424859513,1781209849000,-500.0,0.00037534,18]
[424859515,1781209849000,-1480.66,0.00037534,18]
[424859516,1781209849000,-855.01800849,0.00037534,18]
[424859511,1781209849000,-500.0,0.00037534,18]
[424859512,1781209849000,-10506.16,0.00037534,18]
[424859506,1781209849000,-608.35,0.00037534,18]
[424859507,1781209849000,-648.69,0.00037534,18]
[424859505,1781209849000,-500.0,0.00037534,18]
[424859494,1781209849000,-500.0,0.00037534,18]
[424859499,1781209849000,-500.0,0.00037534,6]
[424859492,1781209849000,-624.47,0.00037534,18]
[424859508,1781209849000,-500.0,0.00037534,18]
[424859500,1781209849000,-500.0,0.00037534,18]
[424859517,1781209873000,5000.0,0.00024658,30]
[424859518,1781209896000,5000.0,0.00024658,30]
[424859519,1781209923000,420.96162371,0.000207,30]
[424859520,1781209928000,420.96162371,0.000207,30]
[424859522,1781209933000,420.96162371,0.000207,30]
[424859524,1781210260000,210.48081187,0.000207,30]
[424859525,1781210265000,210.48081185,0.000207,30]
[424859526,1781210270000,210.48081185,0.000207,30]
[424859531,1781210602000,157.8606089,0.000207,30]
[424859532,1781210607000,157.86060889,0.000207,30]
[424859543,1781210936000,189.43273067,0.000213,30]
[424859587,1781211032000,-1542.91742839,0.00025425,2]
[424859589,1781211032000,-500.0,0.00025442,2]
[424859590,1781211032000,-254.41422873,0.00025442,2]
[424859588,1781211032000,-160.0,0.00025434,2]
[424859594,1781211032000,-500.0,0.00025442,2]
[424859596,1781211032000,-203.18914806,0.00025442,2]
[424859595,1781211032000,-402.07730657,0.00025442,2]
[424859592,1781211032000,-500.0,0.00025442,2]
[424859597,1781211032000,-174.97495901,0.00025443,2]
[424859585,1781211032000,-1323.11203863,0.000229,2]
[424859593,1781211032000,-500.0,0.00025442,2]
[424859584,1781211032000,-226.61765514,0.000229,2]
[424859569,1781211032000,-170.0,0.00016915,2]
[424859576,1781211032000,-204.9190985,0.00022325,2]
[424859581,1781211032000,-970.91547704,0.000225,2]
[424859577,1781211032000,-193.11265574,0.00022325,2]
[424859579,1781211032000,-226.61765514,0.000225,2]
[424859573,1781211032000,-226.61765514,0.000222,2]
[424859580,1781211032000,-1323.11203863,0.000225,2]
[424859583,1781211032000,-1323.11203863,0.000227,2]
[424859578,1781211032000,-192.66396775,0.00022325,2]
[424859575,1781211032000,-1323.11203863,0.000222,2]
[424859572,1781211032000,-1323.11203863,0.00022,2]
[424859571,1781211032000,-226.61765514,0.00022,2]
[424859570,1781211032000,-237.79489793,0.00018944,2]
[424859582,1781211032000,-226.61765514,0.000227,2]
[424859586,1781211032000,-322.4768939,0.00025425,2]
[424859599,1781211032000,-500.0,0.00025443,2]
[424859601,1781211032000,-500.0,0.00025443,2]
[424859598,1781211032000,-500.0,0.00025443,2]
[424859629,1781211032000,-7718.46117021,0.00025444,2]
[424859625,1781211032000,-136.77227047,0.00025443,2]
[424859628,1781211032000,-176.475,0.00025443,10]
[424859627,1781211032000,-425.91282106,0.00025443,2]
[424859626,1781211032000,-139.58772953,0.00025443,2]
[424859622,1781211032000,-214.86143189,0.00025443,2]
[424859630,1781211032000,-41117.4335815,0.00025444,2]
[424859624,1781211032000,-363.22772953,0.00025443,2]
[424859623,1781211032000,-500.0,0.00025443,2]
[424859621,1781211032000,-285.13856811,0.00025443,2]
[424859620,1781211032000,-500.0,0.00025443,2]